[Event "*** Titled Tuesday Blitz"]
[Site "Chess.com"]
[Date "2020.12.29"]
[Round "3"]
[White "Susal_De_Silva"]
[Black "javirec"]
[Result "1-0"]
[WhiteElo "2567"]
[BlackElo "2369"]
[TimeControl "180+1"]
[EndTime "10:28:45 PST"]
[Termination "Susal_De_Silva won by checkmate"]

1. e4 {[%clk 0:03:00.9]} 1... e5 {[%clk 0:02:56.9]} 2. Nf3 {[%clk 0:03:00.6]}
2... Nc6 {[%clk 0:02:57]} 3. d4 {[%clk 0:02:57.4]} 3... exd4 {[%clk 0:02:55.7]}
4. Bc4 {[%clk 0:02:57.4]} 4... Nf6 {[%clk 0:02:45.7]} 5. O-O {[%clk 0:02:55.8]}
5... Nxe4 {[%clk 0:02:43.5]} 6. Nc3 {[%clk 0:02:55.2]} 6... Nd6 {[%clk
0:02:27.9]} 7. Nxd4 {[%clk 0:02:39.4]} 7... Nxc4 {[%clk 0:02:20.3]} 8. Qe2+
{[%clk 0:02:36.9]} 8... Be7 {[%clk 0:02:15.7]} 9. Nf5 {[%clk 0:02:34]} 9... O-O
{[%clk 0:02:07.5]} 10. Nxe7+ {[%clk 0:02:05.4]} 10... Qxe7 {[%clk 0:02:01.9]}
11. Qxc4 {[%clk 0:02:06.3]} 11... d6 {[%clk 0:01:55.5]} 12. Bf4 {[%clk
0:02:03.9]} 12... Be6 {[%clk 0:01:54.4]} 13. Qb5 {[%clk 0:02:00.6]} 13... Qd7
{[%clk 0:01:44.2]} 14. Rad1 {[%clk 0:01:53.9]} 14... a6 {[%clk 0:01:34.3]} 15.
Qd3 {[%clk 0:01:42.5]} 15... f6 {[%clk 0:01:18.9]} 16. Ne4 {[%clk 0:01:38]}
16... Qf7 {[%clk 0:01:17.9]} 17. b3 {[%clk 0:01:35.1]} 17... Rad8 {[%clk
0:00:57.8]} 18. c4 {[%clk 0:01:32.8]} 18... Rfe8 {[%clk 0:00:56.7]} 19. Rfe1
{[%clk 0:01:29.3]} 19... Bf5 {[%clk 0:00:54.5]} 20. h3 {[%clk 0:01:16]} 20...
Qg6 {[%clk 0:00:52.1]} 21. Qd5+ {[%clk 0:01:02.5]} 21... Kh8 {[%clk 0:00:51.7]}
22. Ng3 {[%clk 0:01:00.5]} 22... Bd7 {[%clk 0:00:50.5]} 23. h4 {[%clk
0:00:55.9]} 23... Qg4 {[%clk 0:00:45]} 24. Rxe8+ {[%clk 0:00:37]} 24... Rxe8
{[%clk 0:00:42.9]} 25. Bc1 {[%clk 0:00:36]} 25... Ne5 {[%clk 0:00:21.9]} 26. Rd4
{[%clk 0:00:17.4]} 26... Qg6 {[%clk 0:00:13.2]} 27. Qxb7 {[%clk 0:00:13.4]}
27... Bc6 {[%clk 0:00:12.2]} 28. Qxc7 {[%clk 0:00:13.3]} 28... Qc2 {[%clk
0:00:11]} 29. Be3 {[%clk 0:00:12.1]} 29... Qb1+ {[%clk 0:00:07.3]} 30. Kh2
{[%clk 0:00:12.1]} 30... Ng4+ {[%clk 0:00:06.3]} 31. Rxg4 {[%clk 0:00:11.5]}
31... Rg8 {[%clk 0:00:03.1]} 32. h5 {[%clk 0:00:09.9]} 32... Be8 {[%clk
0:00:02.4]} 33. Qe7 {[%clk 0:00:09.1]} 33... f5 {[%clk 0:00:02]} 34. Rxg7 {[%clk
0:00:07.4]} 34... Rxg7 {[%clk 0:00:02.2]} 35. Qxe8+ {[%clk 0:00:07.4]} 35... Rg8
{[%clk 0:00:02.6]} 36. Bd4# {[%clk 0:00:08]} 1-0

[Event "*** Titled Tuesday Blitz"]
[Site "Chess.com"]
[Date "2020.12.29"]
[Round "3"]
[White "Snegokhod"]
[Black "rasmussvane"]
[Result "0-1"]
[WhiteElo "2458"]
[BlackElo "2880"]
[TimeControl "180+1"]
[EndTime "10:28:46 PST"]
[Termination "rasmussvane won by checkmate"]

1. d4 {[%clk 0:03:00.9]} 1... d5 {[%clk 0:02:58.7]} 2. c4 {[%clk 0:02:58.6]}
2... e6 {[%clk 0:02:58]} 3. Nc3 {[%clk 0:02:58.1]} 3... a6 {[%clk 0:02:57.8]} 4.
cxd5 {[%clk 0:02:57.5]} 4... exd5 {[%clk 0:02:58.7]} 5. Bf4 {[%clk 0:02:57.4]}
5... Nf6 {[%clk 0:02:57.9]} 6. e3 {[%clk 0:02:56.3]} 6... Bd6 {[%clk 0:02:58.2]}
7. Bxd6 {[%clk 0:02:52.8]} 7... Qxd6 {[%clk 0:02:59.1]} 8. Bd3 {[%clk
0:02:53.1]} 8... O-O {[%clk 0:02:58.3]} 9. Nge2 {[%clk 0:02:52.6]} 9... Re8
{[%clk 0:02:57.2]} 10. O-O {[%clk 0:02:52.4]} 10... b6 {[%clk 0:02:57.8]} 11.
Rc1 {[%clk 0:02:48.4]} 11... Bb7 {[%clk 0:02:57]} 12. Ng3 {[%clk 0:02:47.1]}
12... g6 {[%clk 0:02:55.8]} 13. Qd2 {[%clk 0:02:35.6]} 13... Nbd7 {[%clk
0:02:53.2]} 14. f3 {[%clk 0:02:34.8]} 14... c5 {[%clk 0:02:52.9]} 15. b3 {[%clk
0:02:29.9]} 15... Rac8 {[%clk 0:02:52]} 16. Na4 {[%clk 0:02:28.9]} 16... h5
{[%clk 0:02:48.8]} 17. Ne2 {[%clk 0:02:26]} 17... Qe7 {[%clk 0:02:40.6]} 18. Kf2
{[%clk 0:02:25.2]} 18... c4 {[%clk 0:02:38.2]} 19. bxc4 {[%clk 0:02:20.4]} 19...
dxc4 {[%clk 0:02:39.1]} 20. Bb1 {[%clk 0:02:13.8]} 20... b5 {[%clk 0:02:39.5]}
21. Nac3 {[%clk 0:02:11.4]} 21... b4 {[%clk 0:02:39.6]} 22. Nd1 {[%clk
0:02:02.6]} 22... c3 {[%clk 0:02:16.2]} 23. Qd3 {[%clk 0:01:59.9]} 23... Bd5
{[%clk 0:02:16.2]} 24. e4 {[%clk 0:01:55.4]} 24... Bc4 {[%clk 0:02:13.1]} 25.
Qc2 {[%clk 0:01:51.1]} 25... Qd6 {[%clk 0:02:02.6]} 26. Ne3 {[%clk 0:01:37.3]}
26... Bxe2 {[%clk 0:01:55.8]} 27. Qxe2 {[%clk 0:01:34.1]} 27... Qxd4 {[%clk
0:01:56]} 28. Rfd1 {[%clk 0:01:32.6]} 28... Qb6 {[%clk 0:01:53.3]} 29. Kf1
{[%clk 0:01:29.4]} 29... a5 {[%clk 0:01:46.3]} 30. Nc4 {[%clk 0:01:26.8]} 30...
Qc7 {[%clk 0:01:35.8]} 31. Nd6 {[%clk 0:01:26.9]} 31... a4 {[%clk 0:01:35.8]}
32. Nxe8 {[%clk 0:01:25]} 32... Rxe8 {[%clk 0:01:35.8]} 33. g3 {[%clk
0:01:20.5]} 33... b3 {[%clk 0:01:26.3]} 34. axb3 {[%clk 0:01:20.2]} 34... axb3
{[%clk 0:01:27.2]} 35. Bd3 {[%clk 0:01:19.8]} 35... Ne5 {[%clk 0:01:20.8]} 36.
Bb5 {[%clk 0:01:15.2]} 36... Rb8 {[%clk 0:01:17.5]} 37. Ba4 {[%clk 0:01:15]}
37... c2 {[%clk 0:01:09.3]} 38. Re1 {[%clk 0:01:03.2]} 38... Qc3 {[%clk
0:00:51.9]} 39. Kg2 {[%clk 0:01:00.1]} 39... Nd3 {[%clk 0:00:43]} 40. Rf1 {[%clk
0:00:54]} 40... Nxc1 {[%clk 0:00:42.9]} 41. Rxc1 {[%clk 0:00:54.2]} 41... Qb2
{[%clk 0:00:40.6]} 42. Qd2 {[%clk 0:00:50]} 42... Qxc1 {[%clk 0:00:35.3]} 43.
Qxc1 {[%clk 0:00:49.6]} 43... b2 {[%clk 0:00:35.8]} 44. Qxc2 {[%clk 0:00:40.6]}
44... b1=Q {[%clk 0:00:35.7]} 45. Qc7 {[%clk 0:00:35.5]} 45... Kg7 {[%clk
0:00:25.1]} 46. e5 {[%clk 0:00:30.7]} 46... Nd5 {[%clk 0:00:19.6]} 47. Qd6
{[%clk 0:00:28.9]} 47... Rb2+ {[%clk 0:00:19.1]} 48. Kh3 {[%clk 0:00:28.4]}
48... Qf1+ {[%clk 0:00:18.9]} 49. Kh4 {[%clk 0:00:28.8]} 49... Qxf3 {[%clk
0:00:15.2]} 50. Bd7 {[%clk 0:00:23.4]} 50... Rxh2+ {[%clk 0:00:13.9]} 51. Bh3
{[%clk 0:00:23.4]} 51... Qg4# {[%clk 0:00:13.5]} 0-1

[Event "*** Titled Tuesday Blitz"]
[Site "Chess.com"]
[Date "2020.12.29"]
[Round "3"]
[White "natelleka"]
[Black "Elyon2000"]
[Result "1-0"]
[WhiteElo "2216"]
[BlackElo "2330"]
[TimeControl "180+1"]
[EndTime "10:28:46 PST"]
[Termination "natelleka won by resignation"]

1. e4 {[%clk 0:03:00.9]} 1... c5 {[%clk 0:02:59.8]} 2. Nf3 {[%clk 0:03:00.1]}
2... Nc6 {[%clk 0:02:59]} 3. d4 {[%clk 0:03:01]} 3... cxd4 {[%clk 0:02:59.9]} 4.
Nxd4 {[%clk 0:02:59.9]} 4... Nf6 {[%clk 0:03:00.5]} 5. Nc3 {[%clk 0:02:57.1]}
5... e5 {[%clk 0:03:00.9]} 6. Ndb5 {[%clk 0:02:56.9]} 6... d6 {[%clk 0:02:55.9]}
7. Bg5 {[%clk 0:02:55.8]} 7... a6 {[%clk 0:02:56.2]} 8. Na3 {[%clk 0:02:53.2]}
8... b5 {[%clk 0:02:56.4]} 9. Nd5 {[%clk 0:02:53.3]} 9... Be7 {[%clk 0:02:55.2]}
10. Bxf6 {[%clk 0:02:53.6]} 10... Bxf6 {[%clk 0:02:55.6]} 11. c3 {[%clk
0:02:53.9]} 11... Ne7 {[%clk 0:02:55.1]} 12. Nxf6+ {[%clk 0:02:31.4]} 12... gxf6
{[%clk 0:02:56]} 13. Nc2 {[%clk 0:02:31.4]} 13... Bb7 {[%clk 0:02:56.4]} 14. Bd3
{[%clk 0:02:28.9]} 14... d5 {[%clk 0:02:56.9]} 15. Qe2 {[%clk 0:02:20.2]} 15...
f5 {[%clk 0:02:53.5]} 16. f3 {[%clk 0:02:04.5]} 16... fxe4 {[%clk 0:02:33.1]}
17. fxe4 {[%clk 0:02:03]} 17... Ng6 {[%clk 0:02:19.1]} 18. exd5 {[%clk
0:02:02.6]} 18... Qxd5 {[%clk 0:02:13]} 19. Ne3 {[%clk 0:02:02.3]} 19... Qe6
{[%clk 0:02:12.8]} 20. Nf5 {[%clk 0:01:53.9]} 20... O-O-O {[%clk 0:01:55.6]} 21.
Be4 {[%clk 0:01:07.2]} 21... Nf4 {[%clk 0:01:49.7]} 22. Bxb7+ {[%clk 0:01:04.2]}
22... Kxb7 {[%clk 0:01:48.2]} 23. Qe4+ {[%clk 0:01:03.1]} 23... Qd5 {[%clk
0:01:31.9]} 24. Qxd5+ {[%clk 0:01:00.3]} 24... Rxd5 {[%clk 0:01:32.8]} 25. O-O
{[%clk 0:00:59]} 25... Rg8 {[%clk 0:01:18.5]} 26. g3 {[%clk 0:00:57]} 26... Rd2
{[%clk 0:01:12.7]} 27. Kh1 {[%clk 0:00:21.4]} 27... Nh3 {[%clk 0:01:10.2]} 28.
Ne7 {[%clk 0:00:15.4]} 28... Re8 {[%clk 0:00:53.7]} 29. Rxf7 {[%clk 0:00:14.5]}
29... Rd7 {[%clk 0:00:53.4]} 30. Rxh7 {[%clk 0:00:10.8]} 30... Nf2+ {[%clk
0:00:48]} 31. Kg2 {[%clk 0:00:10.7]} 31... Nd3 {[%clk 0:00:42.2]} 32. Rd1 {[%clk
0:00:09.2]} 32... Nf4+ {[%clk 0:00:25.6]} 33. gxf4 {[%clk 0:00:09]} 33... Rxd1
{[%clk 0:00:26.5]} 34. Ng6+ {[%clk 0:00:09.1]} 34... Kb6 {[%clk 0:00:24.7]} 35.
Nxe5 {[%clk 0:00:09.2]} 35... Rd2+ {[%clk 0:00:24.3]} 36. Kg3 {[%clk 0:00:09.4]}
36... Rxb2 {[%clk 0:00:24.7]} 37. Nd7+ {[%clk 0:00:08.6]} 37... Ka5 {[%clk
0:00:23.5]} 38. f5 {[%clk 0:00:08.6]} 38... Rd2 {[%clk 0:00:16.5]} 39. f6 {[%clk
0:00:08.5]} 39... Rd8 {[%clk 0:00:17.4]} 40. Ne5 {[%clk 0:00:06.4]} 40... Rxa2
{[%clk 0:00:14.6]} 41. Nc6+ {[%clk 0:00:06.3]} 41... Kb6 {[%clk 0:00:13.2]} 42.
Nxd8 {[%clk 0:00:06.2]} 1-0

[Event "*** Titled Tuesday Blitz"]
[Site "Chess.com"]
[Date "2020.12.29"]
[Round "3"]
[White "rpragchess"]
[Black "Margency"]
[Result "1-0"]
[WhiteElo "2845"]
[BlackElo "2618"]
[TimeControl "180+1"]
[EndTime "10:28:47 PST"]
[Termination "rpragchess won by resignation"]

1. Nf3 {[%clk 0:03:00.9]} 1... d5 {[%clk 0:02:59.3]} 2. e3 {[%clk 0:03:00.4]}
2... e6 {[%clk 0:02:59.4]} 3. c4 {[%clk 0:02:59.9]} 3... c5 {[%clk 0:02:59.6]}
4. b3 {[%clk 0:02:59.8]} 4... Nf6 {[%clk 0:02:59.4]} 5. Bb2 {[%clk 0:03:00.3]}
5... Be7 {[%clk 0:02:55.5]} 6. Be2 {[%clk 0:02:41.2]} 6... O-O {[%clk
0:02:54.1]} 7. O-O {[%clk 0:02:40.8]} 7... b6 {[%clk 0:02:54.1]} 8. cxd5 {[%clk
0:02:41.4]} 8... Nxd5 {[%clk 0:02:53]} 9. d4 {[%clk 0:02:36.5]} 9... Nd7 {[%clk
0:02:46.4]} 10. Nbd2 {[%clk 0:02:25]} 10... Bb7 {[%clk 0:02:45.6]} 11. Nc4
{[%clk 0:02:25.6]} 11... Rc8 {[%clk 0:02:35.6]} 12. Rc1 {[%clk 0:02:24.3]} 12...
Re8 {[%clk 0:02:10.3]} 13. Qd2 {[%clk 0:02:10.1]} 13... Bf8 {[%clk 0:02:09.1]}
14. Rfd1 {[%clk 0:02:08.4]} 14... cxd4 {[%clk 0:01:59]} 15. Qxd4 {[%clk
0:02:00.7]} 15... Qf6 {[%clk 0:01:36.9]} 16. Qg4 {[%clk 0:01:32.8]} 16... Qg6
{[%clk 0:01:16]} 17. Qh3 {[%clk 0:01:32]} 17... a6 {[%clk 0:00:56.9]} 18. Bd3
{[%clk 0:01:22.1]} 18... Qh6 {[%clk 0:00:50.1]} 19. Qxh6 {[%clk 0:01:18.3]}
19... gxh6 {[%clk 0:00:51]} 20. Bb1 {[%clk 0:01:15.3]} 20... Red8 {[%clk
0:00:43]} 21. Nd4 {[%clk 0:01:07.6]} 21... Nc5 {[%clk 0:00:37.6]} 22. e4 {[%clk
0:01:06.1]} 22... Nf4 {[%clk 0:00:35.7]} 23. Nxb6 {[%clk 0:01:05.9]} 23... Rb8
{[%clk 0:00:21.5]} 24. Nc4 {[%clk 0:00:35.7]} 24... Nxe4 {[%clk 0:00:16]} 25.
Na5 {[%clk 0:00:26.5]} 25... Ba8 {[%clk 0:00:14.2]} 26. Kf1 {[%clk 0:00:16.7]}
26... Ng5 {[%clk 0:00:07.2]} 27. Nac6 {[%clk 0:00:15.4]} 27... Rbc8 {[%clk
0:00:06.6]} 28. g3 {[%clk 0:00:09]} 28... Rxd4 {[%clk 0:00:05.8]} 29. Ne7+
{[%clk 0:00:06.8]} 29... Bxe7 {[%clk 0:00:04.4]} 30. Rxc8+ {[%clk 0:00:06.9]}
30... Bf8 {[%clk 0:00:04.1]} 31. Rxd4 {[%clk 0:00:04.1]} 31... Bg2+ {[%clk
0:00:03.5]} 32. Ke1 {[%clk 0:00:04.6]} 32... Nf3+ {[%clk 0:00:04]} 33. Kd1
{[%clk 0:00:05]} 33... Nxd4 {[%clk 0:00:03.8]} 34. Bxd4 {[%clk 0:00:05.9]} 34...
Nd5 {[%clk 0:00:02.1]} 35. Bc5 {[%clk 0:00:05.3]} 35... Nc3+ {[%clk 0:00:02.5]}
36. Kc2 {[%clk 0:00:05.6]} 36... Be4+ {[%clk 0:00:02.4]} 37. Kxc3 {[%clk
0:00:05.5]} 37... Bxb1 {[%clk 0:00:03.3]} 38. Rxf8+ {[%clk 0:00:05.6]} 1-0

[Event "*** Titled Tuesday Blitz"]
[Site "Chess.com"]
[Date "2020.12.29"]
[Round "3"]
[White "MarcoCorvi"]
[Black "rubhani"]
[Result "0-1"]
[WhiteElo "2188"]
[BlackElo "2489"]
[TimeControl "180+1"]
[EndTime "10:28:47 PST"]
[Termination "rubhani won by checkmate"]

1. c4 {[%clk 0:03:00.9]} 1... c5 {[%clk 0:02:55.2]} 2. Nc3 {[%clk 0:03:00.2]}
2... Nc6 {[%clk 0:02:51.7]} 3. Nf3 {[%clk 0:03:00.5]} 3... g6 {[%clk 0:02:48.2]}
4. g3 {[%clk 0:03:00.7]} 4... Bg7 {[%clk 0:02:48.9]} 5. Bg2 {[%clk 0:03:00]}
5... Nh6 {[%clk 0:02:46.7]} 6. O-O {[%clk 0:02:57.8]} 6... O-O {[%clk
0:02:46.9]} 7. e4 {[%clk 0:02:44.3]} 7... d6 {[%clk 0:02:39.2]} 8. d3 {[%clk
0:02:44.5]} 8... f5 {[%clk 0:02:38.5]} 9. Ng5 {[%clk 0:02:15.3]} 9... fxe4
{[%clk 0:01:41.3]} 10. dxe4 {[%clk 0:01:59.6]} 10... Kh8 {[%clk 0:01:34.4]} 11.
h3 {[%clk 0:01:43.7]} 11... Nf7 {[%clk 0:01:32.2]} 12. Nxf7+ {[%clk 0:01:42.5]}
12... Rxf7 {[%clk 0:01:33.1]} 13. Be3 {[%clk 0:01:39.7]} 13... Be6 {[%clk
0:01:29.6]} 14. Nd5 {[%clk 0:01:24]} 14... Qd7 {[%clk 0:01:29.3]} 15. Kh2 {[%clk
0:01:13.9]} 15... Bxb2 {[%clk 0:01:29]} 16. Rb1 {[%clk 0:01:05.2]} 16... Bd4
{[%clk 0:01:28.9]} 17. Qd2 {[%clk 0:01:01.6]} 17... Raf8 {[%clk 0:01:14.8]} 18.
f4 {[%clk 0:01:00.2]} 18... Bxe3 {[%clk 0:01:09.7]} 19. Qxe3 {[%clk 0:01:00.7]}
19... Nd4 {[%clk 0:01:09.7]} 20. g4 {[%clk 0:00:58.4]} 20... Bxd5 {[%clk
0:01:06.1]} 21. exd5 {[%clk 0:00:50.1]} 21... b6 {[%clk 0:01:05.6]} 22. Rbe1
{[%clk 0:00:49.3]} 22... Qa4 {[%clk 0:01:00]} 23. Rf2 {[%clk 0:00:37.1]} 23...
Qxc4 {[%clk 0:00:54]} 24. Rc1 {[%clk 0:00:27.9]} 24... Qa4 {[%clk 0:00:48.7]}
25. Be4 {[%clk 0:00:23.2]} 25... Qd7 {[%clk 0:00:31.2]} 26. Rd1 {[%clk
0:00:22.2]} 26... Rf6 {[%clk 0:00:30.3]} 27. g5 {[%clk 0:00:20.6]} 27... R6f7
{[%clk 0:00:29.8]} 28. Rxd4 {[%clk 0:00:17.7]} 28... cxd4 {[%clk 0:00:29.8]} 29.
Qxd4+ {[%clk 0:00:18.1]} 29... Kg8 {[%clk 0:00:30.7]} 30. Kg3 {[%clk 0:00:18.5]}
30... Rc8 {[%clk 0:00:26.7]} 31. h4 {[%clk 0:00:18.8]} 31... Qc7 {[%clk
0:00:25.5]} 32. Rf3 {[%clk 0:00:07.2]} 32... Qc5 {[%clk 0:00:25.7]} 33. Qd3
{[%clk 0:00:06.8]} 33... Qg1+ {[%clk 0:00:25.2]} 34. Kh3 {[%clk 0:00:07.1]}
34... Rc1 {[%clk 0:00:19.3]} 35. Rg3 {[%clk 0:00:07.3]} 35... Qf2 {[%clk
0:00:17.6]} 36. Kg4 {[%clk 0:00:04.7]} 36... Rxf4+ {[%clk 0:00:15.9]} 37. Kh3
{[%clk 0:00:04.9]} 37... Rf7 {[%clk 0:00:13.1]} 38. Bxg6 {[%clk 0:00:04.8]}
38... hxg6 {[%clk 0:00:12.1]} 39. Qxg6+ {[%clk 0:00:05.6]} 39... Kf8 {[%clk
0:00:12.2]} 40. Qh6+ {[%clk 0:00:05.3]} 40... Ke8 {[%clk 0:00:12.7]} 41. Qh8+
{[%clk 0:00:05.5]} 41... Kd7 {[%clk 0:00:12.7]} 42. g6 {[%clk 0:00:05.2]} 42...
Rh1+ {[%clk 0:00:12.7]} 43. Kg4 {[%clk 0:00:04.9]} 43... Qf5# {[%clk 0:00:13.3]}
0-1

[Event "*** Titled Tuesday Blitz"]
[Site "Chess.com"]
[Date "2020.12.29"]
[Round "3"]
[White "PavlovDanila"]
[Black "Chessdreamer2020"]
[Result "1/2-1/2"]
[WhiteElo "2687"]
[BlackElo "2488"]
[TimeControl "180+1"]
[EndTime "10:28:48 PST"]
[Termination "Game drawn by agreement"]

1. e4 {[%clk 0:03:00.9]} 1... d6 {[%clk 0:03:00.1]} 2. d4 {[%clk 0:03:00.6]}
2... Nf6 {[%clk 0:03:00.7]} 3. Nc3 {[%clk 0:03:00.8]} 3... e5 {[%clk 0:03:01.1]}
4. Nf3 {[%clk 0:03:01.1]} 4... Nbd7 {[%clk 0:03:01.2]} 5. Rg1 {[%clk 0:03:01.1]}
5... g6 {[%clk 0:02:50.8]} 6. g4 {[%clk 0:02:59]} 6... Bg7 {[%clk 0:02:51.1]} 7.
g5 {[%clk 0:02:57.9]} 7... Nh5 {[%clk 0:02:51.1]} 8. Be3 {[%clk 0:02:58.2]} 8...
O-O {[%clk 0:02:50.7]} 9. Qd2 {[%clk 0:02:58.2]} 9... c6 {[%clk 0:02:51.1]} 10.
O-O-O {[%clk 0:02:57.9]} 10... Qa5 {[%clk 0:02:40.5]} 11. Be2 {[%clk 0:02:55.2]}
11... b5 {[%clk 0:02:32.2]} 12. a3 {[%clk 0:02:45.7]} 12... Rb8 {[%clk
0:02:17.4]} 13. Nh4 {[%clk 0:02:32.4]} 13... Nf4 {[%clk 0:02:00.8]} 14. Bxf4
{[%clk 0:02:32.4]} 14... exf4 {[%clk 0:02:01.7]} 15. Na2 {[%clk 0:02:22.3]}
15... Qxd2+ {[%clk 0:01:43.6]} 16. Rxd2 {[%clk 0:02:21.5]} 16... f6 {[%clk
0:01:35.2]} 17. Nf3 {[%clk 0:02:05.7]} 17... fxg5 {[%clk 0:01:30.3]} 18. Nxg5
{[%clk 0:02:01.7]} 18... Nf6 {[%clk 0:01:28.3]} 19. e5 {[%clk 0:01:58.1]} 19...
dxe5 {[%clk 0:01:18.7]} 20. dxe5 {[%clk 0:01:59]} 20... Nd5 {[%clk 0:01:17.9]}
21. Bf3 {[%clk 0:01:56.8]} 21... Bxe5 {[%clk 0:01:00.4]} 22. Bxd5+ {[%clk
0:01:38.9]} 22... cxd5 {[%clk 0:01:01.3]} 23. Rxd5 {[%clk 0:01:35.3]} 23... Bf6
{[%clk 0:00:56.1]} 24. Nb4 {[%clk 0:01:30.9]} 24... Bf5 {[%clk 0:00:39.5]} 25.
Rxf5 {[%clk 0:01:17.1]} 25... gxf5 {[%clk 0:00:35.7]} 26. Ne6+ {[%clk
0:01:17.1]} 26... Kf7 {[%clk 0:00:34.8]} 27. Nxf8 {[%clk 0:01:15.6]} 27... Rxf8
{[%clk 0:00:35.4]} 28. Nd3 {[%clk 0:01:15.6]} 28... Bg7 {[%clk 0:00:30.7]} 29.
Re1 {[%clk 0:01:08]} 29... Re8 {[%clk 0:00:27.3]} 30. Rxe8 {[%clk 0:01:04.8]}
30... Kxe8 {[%clk 0:00:28.2]} 31. Kd1 {[%clk 0:01:01.1]} 31... f3 {[%clk
0:00:28.1]} 32. b3 {[%clk 0:00:55.6]} 32... Bd4 {[%clk 0:00:27.1]} 33. Ke1
{[%clk 0:00:54.6]} 33... Ke7 {[%clk 0:00:26.8]} 34. Kf1 {[%clk 0:00:53.8]} 34...
Ke6 {[%clk 0:00:25.6]} 35. Ne1 {[%clk 0:00:53.8]} 35... Bb2 {[%clk 0:00:23.8]}
36. Nxf3 {[%clk 0:00:53.3]} 36... Kd5 {[%clk 0:00:19.7]} 37. Ke2 {[%clk
0:00:52.7]} 37... Bxa3 {[%clk 0:00:19.5]} 38. Nh4 {[%clk 0:00:51.7]} 38... Ke5
{[%clk 0:00:18]} 39. h3 {[%clk 0:00:50.1]} 39... a5 {[%clk 0:00:18.4]} 40. Kd3
{[%clk 0:00:48.7]} 40... Bc5 {[%clk 0:00:18.2]} 41. Nf3+ {[%clk 0:00:45.6]}
41... Kf4 {[%clk 0:00:17.7]} 42. Nd4 {[%clk 0:00:46.1]} 42... Ke5 {[%clk
0:00:15.1]} 43. Nxb5 {[%clk 0:00:44.1]} 43... Bxf2 {[%clk 0:00:15.5]} 44. Nc3
{[%clk 0:00:43.8]} 44... Bc5 {[%clk 0:00:15]} 45. Ke2 {[%clk 0:00:42.8]} 45...
Kd4 {[%clk 0:00:13.3]} 46. Na4 {[%clk 0:00:41.5]} 46... Bd6 {[%clk 0:00:12.5]}
47. Kf3 {[%clk 0:00:41.8]} 47... h5 {[%clk 0:00:12.2]} 1/2-1/2

[Event "*** Titled Tuesday Blitz"]
[Site "Chess.com"]
[Date "2020.12.29"]
[Round "3"]
[White "ExcitingTrap"]
[Black "erdni1993"]
[Result "1-0"]
[WhiteElo "2351"]
[BlackElo "2522"]
[TimeControl "180+1"]
[EndTime "10:28:48 PST"]
[Termination "ExcitingTrap won by checkmate"]

1. e4 {[%clk 0:03:00.9]} 1... c5 {[%clk 0:03:00]} 2. Nf3 {[%clk 0:03:00.8]} 2...
e6 {[%clk 0:03:00.5]} 3. g3 {[%clk 0:02:59.8]} 3... Nc6 {[%clk 0:02:57.9]} 4.
Bg2 {[%clk 0:02:59.5]} 4... d6 {[%clk 0:02:58]} 5. O-O {[%clk 0:02:59.1]} 5...
Bd7 {[%clk 0:02:58.2]} 6. d4 {[%clk 0:02:56.9]} 6... cxd4 {[%clk 0:02:57.7]} 7.
Nxd4 {[%clk 0:02:57.8]} 7... Nf6 {[%clk 0:02:57.9]} 8. c4 {[%clk 0:02:55.6]}
8... Be7 {[%clk 0:02:52.1]} 9. Nc3 {[%clk 0:02:47.4]} 9... a6 {[%clk 0:02:52]}
10. h3 {[%clk 0:02:40.5]} 10... Qb6 {[%clk 0:02:39.3]} 11. Nb3 {[%clk 0:02:33]}
11... Ne5 {[%clk 0:02:32]} 12. Be3 {[%clk 0:02:10.3]} 12... Qc7 {[%clk
0:02:31.1]} 13. c5 {[%clk 0:02:02.9]} 13... dxc5 {[%clk 0:02:22.3]} 14. Qe2
{[%clk 0:01:44]} 14... c4 {[%clk 0:02:10.9]} 15. Nd4 {[%clk 0:01:22.7]} 15...
Nd3 {[%clk 0:02:08.9]} 16. b3 {[%clk 0:01:18.2]} 16... b5 {[%clk 0:02:04.9]} 17.
e5 {[%clk 0:01:14.5]} 17... Rc8 {[%clk 0:01:54.3]} 18. exf6 {[%clk 0:01:12.6]}
18... Bxf6 {[%clk 0:01:55.2]} 19. bxc4 {[%clk 0:01:10.4]} 19... Qxc4 {[%clk
0:01:48.2]} 20. Ne4 {[%clk 0:01:06.1]} 20... Be7 {[%clk 0:01:19]} 21. Rfd1
{[%clk 0:01:02.6]} 21... Ne5 {[%clk 0:01:11]} 22. Qh5 {[%clk 0:00:58.4]} 22...
Ng6 {[%clk 0:00:40.8]} 23. Bg5 {[%clk 0:00:34.2]} 23... f6 {[%clk 0:00:27.5]}
24. Be3 {[%clk 0:00:21.9]} 24... e5 {[%clk 0:00:25.7]} 25. Rac1 {[%clk 0:00:20]}
25... Qxa2 {[%clk 0:00:21]} 26. Rxc8+ {[%clk 0:00:20.4]} 26... Bxc8 {[%clk
0:00:21.6]} 27. Nc6 {[%clk 0:00:20.8]} 27... Qe6 {[%clk 0:00:17.8]} 28. Nxe7
{[%clk 0:00:20.5]} 28... Kxe7 {[%clk 0:00:16.5]} 29. Bc5+ {[%clk 0:00:20.1]}
29... Kf7 {[%clk 0:00:16]} 30. Nd6+ {[%clk 0:00:19.9]} 30... Kf8 {[%clk
0:00:09]} 31. Nxc8+ {[%clk 0:00:18.8]} 31... Ke8 {[%clk 0:00:09.3]} 32. Nd6+
{[%clk 0:00:17.8]} 32... Ke7 {[%clk 0:00:09.2]} 33. Bd5 {[%clk 0:00:13.8]} 33...
Qd7 {[%clk 0:00:06.2]} 34. Qe2 {[%clk 0:00:12.2]} 34... Rb8 {[%clk 0:00:05.2]}
35. Nxb5+ {[%clk 0:00:11.1]} 35... Ke8 {[%clk 0:00:04.7]} 36. Nd6+ {[%clk
0:00:10]} 36... Ke7 {[%clk 0:00:04.6]} 37. Qe4 {[%clk 0:00:09.8]} 37... Qc7
{[%clk 0:00:04]} 38. Nf5+ {[%clk 0:00:08]} 38... Ke8 {[%clk 0:00:04.4]} 39. Bc6+
{[%clk 0:00:07.7]} 39... Kf7 {[%clk 0:00:02.5]} 40. Qd5# {[%clk 0:00:07.7]} 1-0